fUSD/lending_fUSD_20260127
["ID","MTS","AMOUNT","RATE_DAILY","PERIOD"]
[403768953,1769529047569,-500.0,0.00018357,2]
[403768954,1769529047579,-449.27,0.0001838,2]
[403768955,1769529047588,-500.0,0.00018411,2]
[403768956,1769529047598,-363.68602763,0.00018411,2]
[403768957,1769529047607,-500.0,0.00018411,2]
[403768958,1769529047617,-500.0,0.00018411,2]
[403768959,1769529047627,-500.0,0.00018411,2]
[403768960,1769529047637,-719.0,0.00018426,2]
[403768961,1769529047647,-500.0,0.00018466,2]
[403768962,1769529047657,-500.0,0.00018466,2]
[403768963,1769529047666,-500.0,0.00018466,2]
[403768964,1769529047675,-648.66467248,0.00018466,2]
[403768965,1769529047686,-719.0,0.00018468,2]
[403768966,1769529047696,-2351.0,0.0001852,2]
[403768967,1769529047705,-349.53356316,0.00018521,2]
[403768968,1769529047715,-500.0,0.00018521,2]
[403768969,1769529047724,-500.0,0.00018521,2]
[403768970,1769529047734,-4989.0,0.00018536,2]
[403768971,1769529047742,-719.0,0.00018547,2]
[403768972,1769529047752,-1102.36,0.00018562,2]
[403768973,1769529047761,-719.0,0.00018569,2]
[403768974,1769529047771,-500.0,0.00018576,2]
[403768975,1769529047781,-265.5995176,0.00018576,2]
[403768976,1769529047791,-188.13086915,0.00018631,2]
[403768977,1769529047801,-4989.0,0.00018632,2]
[403768978,1769529047811,-289.04,0.00018634,2]
[403768979,1769529047821,-719.0,0.00018643,2]
[403768980,1769529047830,-166.66,0.0001866,2]
[403768981,1769529047840,-346.92554585,0.00018668,2]
[403768982,1769529047849,-987.88080104,0.0001867,2]
[403768983,1769529047858,-156.73,0.00018723,2]
[403768984,1769529047867,-178.62,0.00018728,2]
[403768985,1769529047877,-719.0,0.00018764,2]
[403768986,1769529047886,-1001.46927476,0.00018888,2]
[403768987,1769529047895,-162.0,0.000189,3]
[403768988,1769529047905,-162.0,0.000189,3]
[403768989,1769529047914,-168.61681877,0.000189,2]
[403768990,1769529047924,-719.0,0.00018908,2]
[403768991,1769529047934,-719.0,0.00018957,2]
[403768992,1769529047944,-719.0,0.00018975,2]
[403768993,1769529047953,-719.0,0.00018998,2]
[403768994,1769529047962,-165.1,0.00019,14]
[403768995,1769529047971,-5168.48481096,0.00019,2]
[403768996,1769529047981,-2541.26250163,0.00019,2]
[403768997,1769529047991,-515.0,0.00019,6]
[403768998,1769529048000,-169.76024566,0.00019,2]
[403768999,1769529048010,-135751.14743167,0.00019,2]
[403769000,1769529048021,-719.0,0.0001901,2]
[403769001,1769529048030,-445.0,0.00019178,4]
[403769002,1769529048040,-151.0,0.00019178,2]
[403769003,1769529048049,-151.0,0.00019178,2]
[403769004,1769529048058,-151.0,0.00019178,2]
[403769005,1769529048067,-220.807987,0.00019178,2]
[403769006,1769529048077,-220.807987,0.00019178,2]
[403769007,1769529048086,-220.807987,0.00019178,2]
[403769008,1769529048095,-220.807987,0.00019178,2]
[403769009,1769529048104,-1514.384207,0.00019178,2]
[403769010,1769529048113,-1514.384207,0.00019178,2]
[403769011,1769529048122,-1514.384207,0.00019178,2]
[403769012,1769529048132,-1514.384207,0.00019178,2]
[403769013,1769529048141,-1233.0,0.00019214,2]
[403769014,1769529048149,-1024.43239068,0.00019218,2]
[403769015,1769529048159,-719.0,0.00019232,2]
[403769016,1769529048168,-171.24,0.00019312,2]
[403769017,1769529048177,-273.07574614,0.00019336,2]
[403769018,1769529048186,-1181.58,0.00019339,2]
[403769019,1769529048196,-84552.07,0.00019339,2]
[403769020,1769529048205,-5245.82,0.00019339,2]
[403769021,1769529048214,-7115.74,0.00019339,2]
[403769022,1769529048223,-1551.99,0.00019339,2]
[403769023,1769529048233,-150.99,0.00019339,2]
[403769024,1769529048242,-999.99,0.00019339,2]
[403769025,1769529048252,-299.99,0.00019339,7]
[403769026,1769529048261,-9999.99,0.00019339,2]
[403769027,1769529048270,-9999.99,0.00019339,2]
[403769028,1769529048280,-3472.87,0.00019339,2]
[403769029,1769529048289,-9822.91,0.00019339,2]
[403769030,1769529048298,-499.99,0.00019339,2]
[403769031,1769529048307,-150.99,0.00019339,2]
[403769032,1769529048316,-1723.06,0.00019339,2]
[403769033,1769529048326,-1537.98,0.00019339,2]
[403769034,1769529048335,-1144.3,0.00019339,2]
[403769035,1769529048344,-166.66,0.00019346,2]
[403769036,1769529048353,-719.0,0.00019433,2]
[403769037,1769529048362,-772.42,0.00019445,2]
[403769038,1769529048372,-719.0,0.00019461,2]
[403769039,1769529048381,-289.04,0.00019481,2]
[403769040,1769529048391,-41633.96317344,0.000195,2]
[403769041,1769529048400,-10027.08089338,0.000195,2]
[403769042,1769529048409,-719.0,0.00019613,2]
[403769043,1769529048419,-719.0,0.00019659,2]
[403769044,1769529048428,-156.73,0.00019659,2]
[403769045,1769529048437,-719.0,0.00019663,2]
[403769046,1769529048446,-719.0,0.00019685,2]
[403769047,1769529048455,-178.62,0.00019703,2]
[403769048,1769529048464,-772.42,0.00019718,2]
[403769049,1769529048474,-449.27,0.0001975,2]
[403769050,1769529048483,-719.0,0.00019839,2]
[403769051,1769529048492,-178.6,0.00019882,2]
[403769052,1769529048501,-719.0,0.00019888,2]
[403769053,1769529048510,-4922.68431337,0.000199,3]
[403769054,1769529048519,-772.42,0.00019992,2]
[403769055,1769529048528,-1000.0,0.0002,8]
[403769056,1769529048537,-359.76179104,0.00020037,2]
[403769057,1769529048547,-823.0,0.00020059,2]
[403769058,1769529048556,-200.0,0.00020102,2]
[403769059,1769529048565,-1000.0,0.00020144,2]
[403769060,1769529048578,-200.0,0.00020174,2]
[403769061,1769529048587,-1000.0,0.00020252,2]
[403769062,1769529048597,-651.06,0.00020266,2]
[403769063,1769529048606,-200.0,0.00020275,2]
[403769064,1769529048621,-4568.3097183,0.00020283,2]
[403769065,1769529048632,-1246.7704273,0.00020283,2]
[403769066,1769529048642,-289.04,0.00020328,2]
[403769067,1769529048651,-779.4161464,0.00020343,2]
[403769068,1769529048660,-1263.8345096,0.00020343,2]
[403769069,1769529048672,-3292.0,0.00020365,2]
[403769070,1769529048681,-1102.36,0.00020418,2]
[403769071,1769529048690,-340.66224518,0.00020447,2]
[403769072,1769529048699,-250.44555653,0.00020452,2]
[403769073,1769529048710,-154.25,0.00020548,2]
[403769074,1769529048719,-150.0,0.00020548,2]
[403769075,1769529048728,-575.5653864,0.00020569,2]
[403769076,1769529048738,-156.73,0.00020595,2]
[403769077,1769529048746,-161.29,0.000206,5]
[403769078,1769529048756,-150.0,0.00020603,2]
[403769079,1769529048766,-1000.0,0.00020677,2]
[403769080,1769529048775,-519.0,0.00020696,4]
[403769081,1769529048784,-1664.11,0.00020714,2]
[403769082,1769529048793,-200.0,0.00020747,2]
[403769083,1769529048802,-1000.0,0.00020773,2]
[403769084,1769529048811,-120397.12326239,0.0002079,2]
[403769085,1769529048820,-151.0,0.0002079,2]
[403769086,1769529048829,-151.0,0.0002079,2]
[403769087,1769529048839,-151.0,0.0002079,2]
[403769088,1769529048848,-151.0,0.0002079,2]
[403769089,1769529048858,-151.0,0.0002079,2]
[403769090,1769529048868,-151.0,0.0002079,2]
[403769091,1769529048877,-151.0,0.0002079,2]
[403769092,1769529048887,-151.0,0.0002079,2]
[403769093,1769529048896,-151.0,0.0002079,2]
[403769094,1769529048905,-220.807987,0.0002079,2]
[403769095,1769529048915,-220.807987,0.0002079,2]
[403769096,1769529048924,-220.807987,0.0002079,2]
[403769097,1769529048933,-220.807987,0.0002079,2]
[403769098,1769529048942,-1514.384207,0.0002079,2]
[403769099,1769529048951,-151.0,0.0002079,2]
[403769100,1769529048961,-1514.384207,0.0002079,2]
[403769101,1769529048971,-151.0,0.0002079,2]
[403769102,1769529048980,-1514.384207,0.0002079,2]
[403769103,1769529048990,-1514.384207,0.0002079,2]
[403769104,1769529049000,-151.0,0.0002079,2]
[403769105,1769529049010,-187.061035,0.0002079,2]
[403769106,1769529049019,-187.061035,0.0002079,2]
[403769107,1769529049029,-187.061035,0.0002079,2]
[403769108,1769529049039,-187.061035,0.0002079,2]
[403769109,1769529049048,-302.748443,0.0002079,2]
[403769110,1769529049058,-302.748443,0.0002079,2]
[403769111,1769529049067,-302.748443,0.0002079,2]
[403769112,1769529049076,-302.748443,0.0002079,2]
[403769113,1769529049085,-337.76783,0.0002079,2]
[403769114,1769529049097,-337.76783,0.0002079,2]
[403769115,1769529049106,-337.76783,0.0002079,2]
[403769116,1769529049116,-337.76783,0.0002079,2]
[403769117,1769529049125,-151.0,0.0002079,2]
[403769118,1769529049134,-151.0,0.0002079,2]
[403769119,1769529049144,-1019.327679,0.00020792,2]
[403769120,1769529049154,-278.1920851,0.00020792,2]
[403769121,1769529049164,-173.9112495,0.00020866,2]
[403769122,1769529049173,-281.9995965,0.00020866,2]
[403769123,1769529049182,-1869.0,0.000209,2]
[403769124,1769529049192,-1500.0,0.000209,2]
[403769125,1769529049201,-2500.0,0.000209,2]
[403769126,1769529049211,-500.0,0.00021,2]
[403769127,1769529049221,-500.0,0.00021,2]
[403769128,1769529049231,-152.0,0.00021,2]
[403769129,1769529049241,-1266.0,0.00021,2]
[403769130,1769529049254,-1266.0,0.00021,2]
[403769131,1769529049263,-1266.0,0.00021,2]
[403769132,1769529049273,-1266.0,0.00021,2]
[403769133,1769529049283,-200.0,0.00021186,2]
[403769134,1769529049292,-200.0,0.00021191,2]
[403769135,1769529049302,-178.62,0.00021192,2]
[403769136,1769529049312,-373.07297731,0.00021406,2]
[403769137,1769529049321,-200.0,0.00021467,2]
[403769138,1769529049331,-156.73,0.00021531,2]
[403769139,1769529049340,-204.32,0.00021907,2]
[403769140,1769529049349,-5000.0,0.00021918,2]
[403769141,1769529049358,-151.0,0.00021918,2]
[403769142,1769529049368,-151.0,0.00021918,2]
[403769143,1769529049377,-151.0,0.00021918,2]
[403769144,1769529049390,-151.0,0.00021918,2]
[403769145,1769529049400,-151.0,0.00021918,2]
[403769146,1769529049410,-1152.0,0.00021946,2]
[403769147,1769529049419,-500.0,0.00021973,2]
[403769148,1769529049428,-500.0,0.00021973,2]
[403769149,1769529049437,-500.0,0.00021973,2]
[403769150,1769529049446,-150.12904612,0.00021973,2]
[403769151,1769529049455,-500.0,0.00021973,2]
[403769152,1769529049465,-500.0,0.00021973,2]
[403769153,1769529049474,-378.88576021,0.00021973,2]
[403769154,1769529049483,-500.0,0.00021973,2]
[403769155,1769529049495,-500.0,0.00021973,2]
[403769156,1769529049504,-500.0,0.00021973,2]
[403769157,1769529049513,-500.0,0.00021973,2]
[403769158,1769529049523,-500.0,0.00021973,2]
[403769159,1769529049532,-368.88723017,0.00021973,2]
[403769160,1769529049541,-500.0,0.00021973,2]
[403769161,1769529049550,-500.0,0.00021973,2]
[403769162,1769529049559,-628.44291984,0.00021973,2]
[403769163,1769529049569,-500.0,0.00021973,2]
[403769164,1769529049581,-300.09,0.00021973,2]
[403769165,1769529049591,-503.36004103,0.00021973,2]
[403769166,1769529049600,-500.0,0.00021973,2]
[403769167,1769529049611,-160.03883125,0.00021973,2]
[403769168,1769529049621,-500.0,0.00021973,2]
[403769169,1769529049630,-500.0,0.00021973,2]
[403769170,1769529049639,-500.0,0.00021973,2]
[403769171,1769529049651,-500.0,0.00021973,2]
[403769172,1769529049661,-500.0,0.00021973,2]
[403769173,1769529049671,-500.0,0.00021973,2]
[403769174,1769529049680,-500.0,0.00021973,2]
[403769175,1769529049690,-167.8676369,0.00021973,2]
[403769176,1769529049700,-500.0,0.00021973,2]
[403769177,1769529049710,-500.0,0.00021973,2]
[403769178,1769529049720,-500.0,0.00021973,2]
[403769179,1769529049729,-485.81902535,0.00021973,2]
[403769180,1769529049739,-500.0,0.00021973,2]
[403769181,1769529049750,-523.04416013,0.00021973,2]
[403769182,1769529049760,-1421.45,0.00022,7]
[403769183,1769529049770,-455.11,0.00022,2]
[403769184,1769529049780,-1000.0,0.00022,8]
[403769185,1769529049790,-23960.91074274,0.00022,4]
[403769186,1769529049799,-208.296,0.0002205,2]
[403769187,1769529049809,-1000.0,0.00022158,2]
[403769188,1769529049818,-200.0,0.00022217,2]
[403769189,1769529049828,-200.0,0.00022221,2]
[403769190,1769529049837,-358.96000063,0.00022222,30]
[403769191,1769529049847,-1102.36,0.00022274,2]
[403769192,1769529049858,-4609.0,0.00022394,2]
[403769193,1769529049867,-156.73,0.00022467,2]
[403769194,1769529049876,-946.65473485,0.00022521,2]
[403769195,1769529049885,-1000.0,0.00022521,2]
[403769196,1769529049895,-1000.0,0.00022521,2]
[403769197,1769529049904,-1116.18968513,0.00022521,2]
[403769198,1769529049913,-1000.0,0.00022521,2]
[403769199,1769529049923,-636.09023448,0.00022521,2]
[403769200,1769529049932,-502.07287865,0.00022521,2]
[403769201,1769529049941,-1028.62760125,0.00022521,2]
[403769202,1769529049950,-1013.07020389,0.00022521,2]
[403769203,1769529049959,-1000.0,0.00022521,2]
[403769204,1769529049968,-1000.0,0.00022521,2]
[403769205,1769529049978,-1000.0,0.00022521,2]
[403769206,1769529049987,-580.50276213,0.00022521,2]
[403769207,1769529049998,-505.47748232,0.00022521,2]
[403769208,1769529050007,-1000.0,0.00022521,2]
[403769209,1769529050016,-735.40003691,0.00022521,2]
[403769210,1769529050025,-1000.0,0.00022521,2]
[403769211,1769529050034,-1000.0,0.00022521,2]
[403769212,1769529050043,-1000.0,0.00022521,2]
[403769213,1769529050052,-980.24339728,0.00022521,2]
[403769214,1769529050062,-1000.0,0.00022521,2]
[403769215,1769529050071,-1000.0,0.00022521,2]
[403769216,1769529050080,-1000.0,0.00022521,2]
[403769217,1769529050089,-1000.0,0.00022521,2]
[403769218,1769529050098,-200.0,0.00022767,2]
[403769219,1769529050107,-386.87667747,0.00022775,2]
[403769220,1769529050116,-200.0,0.00022776,2]
[403769221,1769529050126,-311.94059303,0.000228,2]
[403769222,1769529050135,-1500.0,0.00023068,2]
[403769223,1769529050145,-506.85745262,0.00023068,2]
[403769224,1769529050154,-519.0,0.00023391,7]
[403769225,1769529050167,-2000.0,0.000234,2]
[403769226,1769529050176,-156.73,0.00023403,2]
[403769227,1769529050185,-8618.77,0.00023835,2]
[403769228,1769529050195,-1613.0,0.00024011,2]
[403769229,1769529050203,-535.25190981,0.00024144,2]
[403769230,1769529050213,-1000.0,0.00024173,2]
[403769231,1769529050222,-158.75147167,0.00024254,2]
[403769232,1769529050231,-156.73,0.0002434,2]
[403769233,1769529050240,-358.96000063,0.00024444,30]
[403769234,1769529050250,-5189.0,0.00024625,2]
[403769235,1769529050260,-1000.0,0.00024658,2]
[403769236,1769529050269,-151.0,0.00024658,2]
[403769237,1769529050279,-184.584065,0.00024658,2]
[403769238,1769529050288,-151.0,0.00024658,2]
[403769239,1769529050297,-273.241576,0.00024658,2]
[403769240,1769529050306,-151.0,0.00024658,2]
[403769241,1769529050316,-151.0,0.00024658,2]
[403769242,1769529050325,-151.0,0.00024658,2]
[403769243,1769529050334,-150.0,0.00024873,2]
[403769244,1769529050344,-99118.8307483,0.000249,3]
[403769245,1769529050353,-181.0,0.00024994,120]
[403769246,1769529050362,-301.95084931,0.00024994,120]
[403769247,1769529050371,-575.5653864,0.00025114,2]
[403769248,1769529050381,-156.73,0.00025276,2]
[403769249,1769529050390,-250.0,0.00025421,2]
[403769250,1769529050399,-350.0,0.00025968,2]
[403769251,1769529050408,-519.0,0.00026087,9]
[403769252,1769529050418,-175.73620882,0.00026516,2]
[403769253,1769529050427,-358.96000063,0.00026667,30]
[403769254,1769529050436,-2000.0,0.000271,2]
[403769255,1769529050445,-150.0,0.00027369,2]
[403769256,1769529050454,-300.0,0.00027397,2]
[403769257,1769529050463,-750.0,0.00027397,20]
[403769258,1769529050472,-151.0,0.00027397,7]
[403769259,1769529050481,-151.0,0.00027397,7]
[403769260,1769529050490,-151.0,0.00027397,7]
[403769261,1769529050499,-151.0,0.00027397,7]
[403769262,1769529050509,-151.0,0.00027397,7]
[403769263,1769529050519,-151.0,0.00027397,7]
[403769264,1769529050528,-151.0,0.00027397,7]
[403769265,1769529050537,-151.0,0.00027397,7]
[403769266,1769529050546,-258.802212,0.00027397,7]
[403769267,1769529050555,-27581.91,0.00027398,30]
[403769268,1769529050565,-455.11,0.000274,2]
[403769269,1769529050577,-1421.45,0.000282,7]
[403769270,1769529050587,-519.0,0.00028783,12]
[403769271,1769529050596,-358.96000063,0.00028889,30]
[403769272,1769529050607,-311.94059303,0.00029597,2]
[403769273,1769529050617,-150.0,0.000296,14]
[403769274,1769529050626,-575.5653864,0.0002966,2]
[403769275,1769529050635,-250.0,0.0003,120]
[403769276,1769529050645,-200.428,0.0003,10]
[403769277,1769529050654,-5041.0,0.0003,7]
[403769278,1769529050664,-174.65422019,0.0003011,30]
[403769279,1769529050673,-1408.0,0.00030266,2]
[403769280,1769529050682,-3477.0,0.00030266,2]
[403769281,1769529050691,-1340.335,0.00030266,2]
[403769282,1769529050701,-622.162,0.00030266,2]
[403769283,1769529050710,-303.251,0.00030266,2]
[403769284,1769529050719,-1287.961,0.00030266,2]
[403769285,1769529050728,-6570.0,0.00030266,2]
[403769286,1769529050737,-567.0,0.00030266,2]
[403769287,1769529050747,-2442.0,0.00030266,2]
[403769288,1769529050755,-158.75147167,0.00030318,2]
[403769289,1769529050765,-195.99,0.00030411,120]
[403769290,1769529050774,-434.75433566,0.00030616,2]
[403769291,1769529050784,-1991.09558322,0.00030616,2]
[403769292,1769529050793,-2000.0,0.000308,2]
[403769293,1769529050803,-455.11,0.000311,2]
[403769294,1769529050813,-1630.82,0.000311,10]
[403769295,1769529050823,-1766.71,0.000311,10]
[403769296,1769529050834,-358.96000063,0.00031111,30]
[403769297,1769529050843,-519.0,0.00031478,14]
[403769298,1769529050853,-1265.03969302,0.00031539,2]
[403769299,1769529050865,-165.21,0.000318,14]
[403769300,1769529050875,-200.0,0.00032,120]
[403769301,1769529050884,-291.09036698,0.00032849,120]
[403769302,1769529050893,-344.46,0.00032877,2]
[403769303,1769529050902,-500.0,0.00032877,7]
[403769304,1769529050913,-500.0,0.00032877,7]
[403769305,1769529050922,-500.0,0.00032877,7]
[403769306,1769529051094,-500.0,0.00032877,7]
[403769307,1769529051105,-500.0,0.00032877,7]
[403769308,1769529051115,-220.61725653,0.00032877,7]
[403769309,1769529051126,-500.0,0.00032877,7]
[403769310,1769529051136,-500.0,0.00032877,7]
[403769311,1769529051146,-500.0,0.00032877,7]
[403769312,1769529051155,-157.16,0.000329,14]
[403769313,1769529051164,-1421.45,0.000329,14]
[403769314,1769529051174,-3917.68,0.000329,2]
[403769315,1769529051183,-1408.0,0.00033266,2]
[403769316,1769529051193,-3477.0,0.00033266,2]
[403769317,1769529051203,-1333.0,0.00033266,2]
[403769318,1769529051213,-615.0,0.00033266,2]
[403769319,1769529051223,-184.0,0.00033266,2]
[403769320,1769529051232,-1269.0,0.00033266,2]
[403769321,1769529051242,-6570.0,0.00033266,2]
[403769322,1769529051251,-567.0,0.00033266,2]
[403769323,1769529051261,-2442.0,0.00033266,2]
[403769324,1769529051270,-358.96000063,0.00033333,30]
[403769325,1769529051280,-200.0,0.00034,120]
[403769326,1769529051290,-162.0,0.00034,120]
[403769327,1769529051300,-519.0,0.00034174,17]
[403769328,1769529051309,-575.5653864,0.00034206,2]
[403769329,1769529051318,-2000.0,0.000345,2]
[403769330,1769529051328,-455.11,0.000346,2]
[403769331,1769529051337,-747.0,0.00035,30]
[403769332,1769529051347,-150.16,0.00035332,2]
[403769333,1769529051357,-171.154,0.00035332,2]
[403769334,1769529051366,-272.463,0.00035332,2]
[403769335,1769529051376,-150.0,0.00035332,2]
[403769336,1769529051386,-150.0,0.00035332,2]
[403769337,1769529051395,-1265.03969302,0.00035423,2]
[403769338,1769529051405,-358.96000063,0.00035556,30]
[403769339,1769529051414,-8618.77,0.00035616,2]
[403769340,1769529051424,-300.0,0.00035616,7]
[403769341,1769529051433,-600.0,0.00035616,2]
[403769342,1769529051442,-13692.08131817,0.00036,3]
[403769343,1769529051452,-200.0,0.00036,120]
[403769344,1769529051461,-600.0,0.00036164,2]
[403769345,1769529051470,-1408.0,0.00036266,2]
[403769346,1769529051479,-3477.0,0.00036266,2]
[403769347,1769529051489,-1333.0,0.00036266,2]
[403769348,1769529051501,-615.0,0.00036266,2]
[403769349,1769529051510,-184.0,0.00036266,2]
[403769350,1769529051520,-1269.0,0.00036266,2]
[403769351,1769529051536,-6570.0,0.00036266,2]
[403769352,1769529051545,-567.0,0.00036266,2]
[403769353,1769529051555,-2442.0,0.00036266,2]
[403769354,1769529051564,-3917.68,0.000363,2]
[403769355,1769529051577,-158.75147169,0.00036381,2]
[403769356,1769529051586,-311.94059303,0.00036395,9]
[403769357,1769529051596,-2678.0,0.000364,7]
[403769358,1769529051606,-464.79,0.00036418,10]
[403769359,1769529051618,-600.0,0.00036712,2]
[403769360,1769529051628,-5389.01355138,0.00036818,2]
[403769361,1769529051637,-519.0,0.0003687,19]
[403769362,1769529051646,-709.12981502,0.0003691,2]
[403769363,1769529051655,-221.0,0.00037,2]
[403769364,1769529051665,-969.66,0.00037233,2]
[403769365,1769529051675,-600.0,0.0003726,2]
[403769366,1769529051685,-613.23,0.00037616,2]
[403769367,1769529051694,-613.23,0.00037616,2]
[403769368,1769529051704,-613.23,0.00037616,2]
[403769369,1769529051713,-613.23,0.00037616,2]
[403769370,1769529051723,-613.23,0.00037616,2]
[403769371,1769529051733,-613.23,0.00037616,2]
[403769372,1769529051743,-613.23,0.00037616,2]
[403769373,1769529051753,-613.23,0.00037616,2]
[403769374,1769529051762,-613.23,0.00037616,2]
[403769375,1769529051772,-613.23,0.00037616,2]
[403769376,1769529051782,-613.23,0.00037616,2]
[403769377,1769529051791,-613.23,0.00037616,2]
[403769378,1769529051800,-559.04,0.00037616,2]
[403769379,1769529051810,-150.0,0.00037616,2]
[403769380,1769529051820,-150.22,0.00037616,2]
[403769381,1769529051829,-300.0,0.00037616,2]
[403769382,1769529051839,-389.16,0.00037616,2]
[403769383,1769529051848,-344.54,0.00037616,2]
[403769384,1769529051858,-300.0,0.00037616,2]
[403769385,1769529051867,-358.96000063,0.00037778,30]
[403769386,1769529051877,-600.0,0.00037808,2]
[403769387,1769529051887,-2831.0,0.00037825,11]
[403769388,1769529051896,-2831.0,0.0003792,11]
[403769389,1769529051906,-300.0,0.00038,120]
[403769390,1769529051915,-9006.5371147,0.000381,33]
[403769391,1769529051924,-2323.0,0.00038145,11]
[403769392,1769529051934,-2000.0,0.000382,2]
[403769393,1769529051944,-150.0,0.00038332,2]
[403769394,1769529051953,-150.0,0.00038332,2]
[403769395,1769529051963,-150.0,0.00038332,2]
[403769396,1769529051972,-150.0,0.00038332,2]
[403769397,1769529051982,-150.0,0.00038332,2]
[403769398,1769529051991,-177.672823,0.00038356,120]
[403769399,1769529052000,-151.0,0.00038356,20]
[403769400,1769529052010,-151.0,0.00038356,20]
[403769401,1769529052020,-151.0,0.00038356,20]
[403769402,1769529052029,-151.0,0.00038356,20]
[403769403,1769529052038,-151.0,0.00038356,120]
[403769404,1769529052048,-151.0,0.00038356,20]
[403769405,1769529052057,-151.0,0.00038356,20]
[403769406,1769529052066,-151.0,0.00038356,20]
[403769407,1769529052076,-157.699616,0.00038356,20]
[403769408,1769529052085,-167.586847,0.00038356,10]
[403769409,1769529052094,-167.586847,0.00038356,10]
[403769410,1769529052104,-167.586847,0.00038356,10]
[403769411,1769529052113,-167.586847,0.00038356,10]
[403769412,1769529052123,-167.586847,0.00038356,10]
[403769413,1769529052132,-167.586847,0.00038356,10]
[403769414,1769529052142,-167.586847,0.00038356,10]
[403769415,1769529052151,-167.586847,0.00038356,10]
[403769416,1769529052160,-151.0,0.00038356,120]
[403769417,1769529052170,-151.0,0.00038356,120]
[403769418,1769529052179,-151.0,0.00038356,120]
[403769419,1769529052189,-151.0,0.00038356,120]
[403769420,1769529052199,-266.600374,0.00038356,120]
[403769421,1769529052208,-151.0,0.00038356,120]
[403769422,1769529052217,-151.0,0.00038356,120]
[403769423,1769529052226,-174.60057,0.00038356,120]
[403769424,1769529052236,-151.0,0.00038356,120]
[403769425,1769529052246,-151.0,0.00038356,120]
[403769426,1769529052256,-151.0,0.00038356,120]
[403769427,1769529052266,-151.0,0.00038356,120]
[403769428,1769529052276,-841.79582,0.00038356,15]
[403769429,1769529052286,-841.79582,0.00038356,15]
[403769430,1769529052296,-841.79582,0.00038356,15]
[403769431,1769529052306,-841.79582,0.00038356,15]
[403769432,1769529052316,-841.79582,0.00038356,15]
[403769433,1769529052326,-841.79582,0.00038356,15]
[403769434,1769529052336,-841.79582,0.00038356,15]
[403769435,1769529052346,-841.79582,0.00038356,15]
[403769436,1769529052355,-151.0,0.00038356,120]
[403769437,1769529052364,-151.0,0.00038356,120]
[403769438,1769529052374,-151.0,0.00038356,120]
[403769439,1769529052383,-151.0,0.00038356,120]
[403769440,1769529052393,-151.0,0.00038356,120]
[403769441,1769529052402,-151.0,0.00038356,120]
[403769442,1769529052411,-151.0,0.00038356,120]
[403769443,1769529052420,-151.0,0.00038356,120]
[403769444,1769529052430,-151.0,0.00038356,120]
[403769445,1769529052440,-151.0,0.00038356,120]
[403769446,1769529052449,-151.0,0.00038356,120]
[403769447,1769529052459,-151.0,0.00038356,120]
[403769448,1769529052468,-151.0,0.00038356,120]
[403769449,1769529052478,-151.0,0.00038356,120]
[403769450,1769529052487,-151.0,0.00038356,120]
[403769451,1769529052496,-151.0,0.00038356,120]
[403769452,1769529052506,-151.0,0.00038356,120]